[Event "Championnat du monde jeunes U10"]
[Date "2024.11.15"]
[White "Thorulsley, Kairaav"]
[Black "Guntaka, Aayansh"]
[WhiteElo "1520"]
[BlackElo "1798"]
[Round "1.4"]
[Result "0-1"]
[TimeControl "5400+30"]

1. d4 {[%clk 1:30:58]} 1... d5 {[%clk 1:30:54]} 2. Nc3 {[%clk 1:31:23]} 2... Nf6
{[%clk 1:31:20]} 3. Bf4 {[%clk 1:31:47]} 3... e6 {[%clk 1:31:45]} 4. e3 {[%clk
1:32:13]} 4... Bb4 {[%clk 1:32:06]} 5. Bd3 {[%clk 1:31:58]} 5... c5 {[%clk
1:32:01]} 6. dxc5 {[%clk 1:30:38]} 6... Bxc3+ {[%clk 1:31:01]} 7. bxc3 {[%clk
1:30:55]} 7... Qa5 {[%clk 1:30:53]} 8. Qd2 {[%clk 1:29:14]} 8... Qxc5 {[%clk
1:31:04]} 9. Nf3 {[%clk 1:29:09]} 9... Nc6 {[%clk 1:30:11]} 10. O-O {[%clk
1:29:10]} 10... O-O {[%clk 1:27:53]} 11. Rfb1 {[%clk 1:13:23]} 11... Re8 {[%clk
1:25:49]} 12. Rb5 {[%clk 1:11:48]} 12... Qe7 {[%clk 1:25:04]} 13. c4 {[%clk
1:09:54]} 13... e5 {[%clk 1:24:54]} 14. cxd5 {[%clk 1:09:10]} 14... exf4 {[%clk
1:24:11]} 15. dxc6 {[%clk 1:08:52]} 15... fxe3 {[%clk 1:24:11]} 16. fxe3 {[%clk
1:07:54]} 16... bxc6 {[%clk 1:24:03]} 17. Re5 {[%clk 1:08:05]} 17... Qf8 {[%clk
1:22:29]} 18. Rxe8 {[%clk 1:04:21]} 18... Qxe8 {[%clk 1:22:52]} 19. e4 {[%clk
1:03:31]} 19... Bg4 {[%clk 1:21:50]} 20. Qf4 {[%clk 1:03:43]} 20... Bxf3 {[%clk
1:21:54]} 21. Qxf3 {[%clk 1:03:30]} 21... Qe5 {[%clk 1:22:14]} 22. Re1 {[%clk
0:58:39]} 22... Re8 {[%clk 1:22:31]} 23. h3 {[%clk 0:49:52]} 23... h6 {[%clk
1:20:14]} 24. Qe3 {[%clk 0:46:31]} 24... Re7 {[%clk 1:16:40]} 25. Qe2 {[%clk
0:35:58]} 25... Nh5 {[%clk 1:16:21]} 26. Qf2 {[%clk 0:30:34]} 26... Nf4 {[%clk
1:15:51]} 27. Bc4 {[%clk 0:21:23]} 27... Qg5 {[%clk 1:13:50]} 28. Kh1 {[%clk
0:20:13]} 28... Qe5 {[%clk 1:13:28]} 29. Bb3 {[%clk 0:07:41]} 29... Rd7 {[%clk
1:12:57]} 30. Rf1 {[%clk 0:07:08]} 30... g5 {[%clk 1:12:03]} 31. Qf3 {[%clk
0:04:50]} 31... Qg7 {[%clk 1:08:25]} 32. g3 Ng6 33. Qf2 Nf4 34. Qf3 0-1

[Variant "Standard"]
[Site "Europe Echecs"]

[Event "Championnat du monde jeunes U10"]
[Date "2024.11.15"]
[White "Cao, Frank Zhongtian"]
[Black "Youn, Laeho"]
[WhiteElo "1793"]
[BlackElo "1520"]
[Round "1.5"]
[Result "1-0"]
[TimeControl "5400+30"]

1. e4 {[%clk 1:30:58]} 1... e6 {[%clk 1:30:49]} 2. d4 {[%clk 1:31:24]} 2... d5
{[%clk 1:31:10]} 3. Nc3 {[%clk 1:31:51]} 3... Nf6 {[%clk 1:31:20]} 4. e5 {[%clk
1:32:16]} 4... Nfd7 {[%clk 1:31:39]} 5. f4 {[%clk 1:32:41]} 5... Bb4 {[%clk
1:30:39]} 6. a3 {[%clk 1:29:19]} 6... Ba5 {[%clk 1:31:00]} 7. b4 {[%clk
1:29:27]} 7... Bb6 {[%clk 1:31:24]} 8. Nf3 {[%clk 1:24:56]} 8... Nc6 9. Bb5
{[%clk 1:15:07]} 9... Ne7 {[%clk 1:20:53]} 10. Na4 {[%clk 1:12:55]} 10... c6 11.
Bd3 {[%clk 1:06:47]} 11... Nf5 {[%clk 1:16:11]} 12. c3 {[%clk 0:54:07]} 12...
Nf8 {[%clk 1:12:07]} 13. Bxf5 {[%clk 0:39:06]} 13... exf5 {[%clk 1:11:43]} 14.
Be3 {[%clk 0:36:31]} 14... Ng6 {[%clk 1:09:34]} 15. Nb2 {[%clk 0:33:29]} 15...
a5 {[%clk 1:08:03]} 16. Nd3 {[%clk 0:31:00]} 16... Nh4 {[%clk 1:05:43]} 17. O-O
{[%clk 0:27:23]} 17... O-O {[%clk 1:04:28]} 18. Bf2 {[%clk 0:18:12]} 18... Ng6
{[%clk 1:04:47]} 19. Be3 {[%clk 0:14:20]} 19... f6 {[%clk 1:04:51]} 20. exf6
{[%clk 0:11:39]} 20... Qxf6 {[%clk 1:05:01]} 21. Nde5 {[%clk 0:11:16]} 21... Re8
{[%clk 1:04:43]} 22. Kh1 {[%clk 0:08:25]} 22... Bc7 {[%clk 1:04:18]} 23. Bd2
{[%clk 0:05:57]} 23... Nh4 24. Nxh4 {[%clk 0:05:06]} 24... Qxh4 {[%clk 1:04:47]}
25. Be1 {[%clk 0:03:52]} 25... Qh6 {[%clk 1:05:08]} 26. Bg3 {[%clk 0:03:44]}
26... Bxe5 {[%clk 1:04:39]} 27. fxe5 {[%clk 0:03:53]} 27... Rf8 {[%clk 1:04:55]}
28. Qf3 {[%clk 0:02:05]} 28... Be6 {[%clk 1:04:58]} 29. Bf4 {[%clk 0:02:04]}
29... Qg6 {[%clk 1:04:54]} 30. Qe3 {[%clk 0:01:19]} 30... Qe8 {[%clk 1:04:43]}
31. Qg3 {[%clk 0:01:07]} 31... Bf7 {[%clk 1:04:53]} 32. Bg5 {[%clk 0:00:48]}
32... Bg6 {[%clk 1:05:06]} 33. Bf4 {[%clk 0:01:02]} 33... Qe6 {[%clk 1:05:33]}
34. Rfe1 {[%clk 0:00:54]} 34... a4 {[%clk 1:05:57]} 35. Rf1 {[%clk 0:00:59]}
35... b5 {[%clk 1:06:19]} 36. Rae1 {[%clk 0:01:20]} 36... h5 {[%clk 1:06:41]}
37. Qg5 {[%clk 0:01:20]} 37... Kh7 {[%clk 1:06:59]} 38. Re3 {[%clk 0:01:02]}
38... Rh8 {[%clk 1:07:20]} 39. Rg3 {[%clk 0:00:49]} 39... Ra7 {[%clk 1:06:15]}
40. Re1 {[%clk 0:00:53]} 40... Be8 {[%clk 1:06:35]} 41. h4 {[%clk 0:00:54]}
41... Kg8 {[%clk 1:06:32]} 42. Bd2 {[%clk 0:00:50]} 42... Rh6 {[%clk 1:07:00]}
43. Qxh6 {[%clk 0:01:04]} 43... Qxh6 {[%clk 1:07:25]} 44. Bxh6 {[%clk 0:01:27]}
44... Kh7 {[%clk 1:07:52]} 45. Bg5 {[%clk 0:01:36]} 45... g6 {[%clk 1:08:15]}
46. e6 {[%clk 0:02:01]} 46... Rg7 {[%clk 1:06:52]} 47. e7 {[%clk 0:02:20]} 47...
Rf7 {[%clk 1:07:15]} 48. Re6 {[%clk 0:02:18]} 48... Rg7 {[%clk 1:07:13]} 49.
Rge3 {[%clk 0:02:04]} 49... Kg8 {[%clk 1:06:02]} 50. Rf6 {[%clk 0:02:15]} 50...
Rf7 {[%clk 1:06:08]} 51. Rxf7 {[%clk 0:02:29]} 51... Kxf7 {[%clk 1:06:34]} 52.
Kh2 {[%clk 0:02:51]} 52... Kg7 {[%clk 1:06:12]} 53. Kg3 {[%clk 0:03:13]} 53...
Kf7 {[%clk 1:06:08]} 54. Kf4 {[%clk 0:03:38]} 54... Kg7 {[%clk 1:06:17]} 55. Ke5
1-0

[Variant "Standard"]
[Site "Europe Echecs"]

[Event "Championnat du monde jeunes U10"]
[Date "2024.11.15"]
[White "Dien James"]
[Black "Blekh, Erik"]
[WhiteElo "1513"]
[BlackElo "1790"]
[Round "1.6"]
[Result "0-1"]
[TimeControl "5400+30"]

1. c4 {[%clk 1:30:56]} 1... Nf6 {[%clk 1:30:44]} 2. Nc3 {[%clk 1:31:06]} 2... g6
{[%clk 1:30:44]} 3. Nf3 {[%clk 1:31:18]} 3... Bg7 {[%clk 1:30:59]} 4. g3 {[%clk
1:31:27]} 4... b6 {[%clk 1:29:26]} 5. Bg2 {[%clk 1:30:12]} 5... Bb7 {[%clk
1:29:05]} 6. O-O {[%clk 1:27:07]} 6... c5 {[%clk 1:25:48]} 7. d3 {[%clk
1:22:50]} 7... O-O {[%clk 1:23:36]} 8. Bd2 {[%clk 1:21:37]} 8... h6 {[%clk
1:16:54]} 9. a3 {[%clk 1:20:23]} 9... d6 {[%clk 1:03:31]} 10. Rb1 {[%clk
1:18:51]} 10... Nbd7 {[%clk 0:58:52]} 11. b4 {[%clk 1:16:19]} 11... Rc8 {[%clk
0:58:46]} 12. a4 {[%clk 1:14:55]} 12... Ba8 {[%clk 0:54:18]} 13. Qc1 {[%clk
1:12:27]} 13... Kh7 14. Qa3 {[%clk 1:12:39]} 14... Ng4 {[%clk 0:48:27]} 15. a5
{[%clk 1:09:02]} 15... cxb4 {[%clk 0:42:57]} 16. Rxb4 {[%clk 1:07:38]} 16...
bxa5 {[%clk 0:40:54]} 17. Ra4 {[%clk 1:04:52]} 17... Nc5 {[%clk 0:37:20]} 18.
Rxa5 {[%clk 1:04:09]} 18... Bxf3 {[%clk 0:34:58]} 19. exf3 {[%clk 0:55:27]}
19... Ne5 {[%clk 0:32:52]} 20. Rxa7 {[%clk 0:45:36]} 20... Nc6 {[%clk 0:31:24]}
21. Ra6 {[%clk 0:39:03]} 21... Nxa6 {[%clk 0:31:29]} 22. Qxa6 {[%clk 0:39:15]}
22... Nb4 {[%clk 0:30:53]} 23. Qa3 {[%clk 0:31:08]} 23... Nxd3 {[%clk 0:30:12]}
24. Nd5 {[%clk 0:29:36]} 24... Ne5 {[%clk 0:29:55]} 25. Ba5 {[%clk 0:24:58]}
25... Qe8 {[%clk 0:29:26]} 26. c5 {[%clk 0:14:53]} 26... Nc4 {[%clk 0:28:50]}
27. Qb4 {[%clk 0:14:15]} 27... Nxa5 {[%clk 0:29:02]} 28. Qxa5 {[%clk 0:14:31]}
28... Rxc5 {[%clk 0:29:23]} 29. Qd2 {[%clk 0:14:28]} 29... e6 {[%clk 0:29:32]}
30. Ne3 {[%clk 0:14:10]} 30... d5 {[%clk 0:29:30]} 0-1

[Variant "Standard"]
[Site "Europe Echecs"]

[Event "Championnat du monde jeunes U10"]
[Date "2024.11.15"]
[White "Neuschild, Marius"]
[Black "Kaloh, Edvard"]
[WhiteElo "1786"]
[BlackElo "1506"]
[Round "1.7"]
[Result "1-0"]
[TimeControl "5400+30"]

1. e4 {[%clk 1:30:59]} 1... c5 {[%clk 1:30:53]} 2. Nf3 {[%clk 1:31:24]} 2... g6
{[%clk 1:31:18]} 3. d4 {[%clk 1:31:42]} 3... cxd4 {[%clk 1:31:39]} 4. Nxd4
{[%clk 1:31:59]} 4... Bg7 {[%clk 1:32:01]} 5. Nc3 {[%clk 1:32:19]} 5... Nc6
{[%clk 1:32:23]} 6. Be3 {[%clk 1:32:45]} 6... e6 {[%clk 1:32:21]} 7. Ndb5 {[%clk
1:31:53]} 7... Bf8 {[%clk 1:29:32]} 8. Nd6+ {[%clk 1:27:29]} 8... Bxd6 {[%clk
1:29:51]} 9. Qxd6 {[%clk 1:27:52]} 9... Qe7 {[%clk 1:30:07]} 10. Bc5 {[%clk
1:23:52]} 10... b6 {[%clk 1:29:14]} 11. Qxe7+ {[%clk 1:21:45]} 11... Ngxe7
{[%clk 1:28:54]} 12. Bd6 {[%clk 1:21:49]} 12... Bb7 {[%clk 1:27:27]} 13. O-O-O
{[%clk 1:19:56]} 13... Nc8 {[%clk 1:26:20]} 14. Bg3 {[%clk 1:14:26]} 14... a6
{[%clk 1:26:14]} 15. Be2 {[%clk 1:11:18]} 15... f6 {[%clk 1:22:11]} 16. Rd2
{[%clk 1:06:48]} 16... N6e7 {[%clk 1:20:52]} 17. Rhd1 {[%clk 1:01:00]} 17... d5
{[%clk 1:21:07]} 18. exd5 {[%clk 1:01:27]} 18... Nxd5 {[%clk 1:21:07]} 19. Nxd5
{[%clk 1:01:39]} 19... Bxd5 {[%clk 1:21:13]} 20. c4 {[%clk 1:01:08]} 20... Bxg2
{[%clk 1:20:19]} 21. Rd8+ {[%clk 1:01:23]} 21... Kf7 {[%clk 1:19:49]} 22. Rxh8
{[%clk 1:01:26]} 22... Bc6 {[%clk 1:19:31]} 23. Rdd8 {[%clk 1:01:20]} 1-0

[Variant "Standard"]
[Site "Europe Echecs"]

[Event "Championnat du monde jeunes U10"]
[Date "2024.11.15"]
[White "Chen, Pin-Jui"]
[Black "Liu, Liam"]
[WhiteElo "1505"]
[BlackElo "1783"]
[Round "1.8"]
[Result "0-1"]
[TimeControl "5400+30"]

1. e4 {[%clk 1:30:53]} 1... c6 {[%clk 1:30:52]} 2. d4 {[%clk 1:31:03]} 2... d5
{[%clk 1:31:06]} 3. Nd2 {[%clk 1:31:13]} 3... dxe4 {[%clk 1:31:21]} 4. Nxe4
{[%clk 1:31:22]} 4... Bf5 {[%clk 1:31:41]} 5. Ng3 {[%clk 1:31:44]} 5... Bg6
{[%clk 1:31:58]} 6. h4 {[%clk 1:31:37]} 6... h6 {[%clk 1:32:20]} 7. Nf3 {[%clk
1:31:34]} 7... Nd7 {[%clk 1:32:40]} 8. h5 {[%clk 1:31:20]} 8... Bh7 {[%clk
1:33:04]} 9. Bd3 {[%clk 1:31:25]} 9... Bxd3 {[%clk 1:33:23]} 10. Qxd3 {[%clk
1:31:41]} 10... e6 {[%clk 1:33:45]} 11. Bf4 {[%clk 1:31:39]} 11... Qa5+ {[%clk
1:33:52]} 12. Bd2 {[%clk 1:32:02]} 12... Qc7 {[%clk 1:34:14]} 13. O-O-O {[%clk
1:31:47]} 13... Ngf6 {[%clk 1:34:13]} 14. Ne4 {[%clk 1:31:00]} 14... Nxe4 {[%clk
1:29:26]} 15. Qxe4 {[%clk 1:31:09]} 15... Nf6 {[%clk 1:29:31]} 16. Qe2 {[%clk
1:31:31]} 16... O-O-O {[%clk 1:28:26]} 17. g3 {[%clk 1:28:37]} 17... Bd6 {[%clk
1:27:56]} 18. Kb1 {[%clk 1:24:15]} 18... Rhe8 {[%clk 1:25:48]} 19. c4 {[%clk
1:11:24]} 19... c5 {[%clk 1:11:03]} 20. Rc1 {[%clk 0:58:05]} 20... Qc6 {[%clk
1:01:20]} 21. Be3 {[%clk 0:40:11]} 21... Ng4 {[%clk 0:54:54]} 22. Rhd1 {[%clk
0:37:32]} 22... Qe4+ {[%clk 0:51:08]} 23. Ka1 {[%clk 0:35:08]} 23... Nxe3 {[%clk
0:51:15]} 24. fxe3 {[%clk 0:35:31]} 24... Bxg3 {[%clk 0:49:55]} 25. Nd2 {[%clk
0:31:10]} 25... Qh7 {[%clk 0:47:32]} 26. dxc5 {[%clk 0:31:14]} 26... Be5 {[%clk
0:47:21]} 27. Qf3 {[%clk 0:27:50]} 27... Qf5 {[%clk 0:47:14]} 28. Qh1 {[%clk
0:27:17]} 28... Rd3 {[%clk 0:43:32]} 29. c6 {[%clk 0:26:15]} 29... Red8 {[%clk
0:32:13]} 30. cxb7+ {[%clk 0:26:12]} 30... Kb8 {[%clk 0:32:37]} 31. Rf1 {[%clk
0:18:20]} 31... Bxb2+ {[%clk 0:30:46]} 32. Kxb2 {[%clk 0:16:56]} 32... Rxd2+
{[%clk 0:30:25]} 33. Kb3 {[%clk 0:17:18]} 33... R8d3+ {[%clk 0:30:26]} 34. Rc3
{[%clk 0:15:44]} 34... Rxc3+ {[%clk 0:30:20]} 35. Kxc3 {[%clk 0:16:11]} 35...
Qd3+ {[%clk 0:30:41]} 36. Kb4 {[%clk 0:15:23]} 36... Qd6+ {[%clk 0:27:37]} 37.
Kc3 {[%clk 0:13:31]} 37... a5 {[%clk 0:27:10]} 0-1

[Variant "Standard"]
[Site "Europe Echecs"]

[Event "Championnat du monde jeunes U10"]
[Date "2024.11.15"]
[White "Akramov, Khusan"]
[Black "Wu, Chenyu"]
[WhiteElo "1782"]
[BlackElo "1503"]
[Round "1.9"]
[Result "1/2-1/2"]
[TimeControl "5400+30"]

1. e4 {[%clk 1:30:55]} 1... e5 {[%clk 1:30:53]} 2. Nf3 {[%clk 1:31:20]} 2... Nc6
{[%clk 1:31:09]} 3. Nc3 {[%clk 1:31:42]} 3... Nf6 {[%clk 1:31:30]} 4. d4 {[%clk
1:32:09]} 4... exd4 {[%clk 1:31:35]} 5. Nxd4 {[%clk 1:32:35]} 5... Bb4 {[%clk
1:31:17]} 6. Nxc6 {[%clk 1:32:59]} 6... bxc6 {[%clk 1:31:37]} 7. Bd3 {[%clk
1:33:27]} 7... O-O {[%clk 1:31:10]} 8. O-O {[%clk 1:33:54]} 8... d5 {[%clk
1:31:10]} 9. exd5 {[%clk 1:34:17]} 9... cxd5 {[%clk 1:31:00]} 10. Bg5 {[%clk
1:34:41]} 10... c6 {[%clk 1:27:50]} 11. Qf3 {[%clk 1:35:04]} 11... Bxc3 {[%clk
1:24:22]} 12. bxc3 {[%clk 1:35:19]} 12... Be6 {[%clk 1:23:44]} 13. h3 {[%clk
1:35:19]} 13... h6 {[%clk 1:23:48]} 14. Bh4 {[%clk 1:35:29]} 14... Rb8 {[%clk
1:21:52]} 15. Rab1 {[%clk 1:34:37]} 15... Qe7 {[%clk 1:20:30]} 16. Qg3 {[%clk
1:26:55]} 16... Rb6 {[%clk 1:17:56]} 17. Rxb6 {[%clk 1:21:04]} 17... axb6 {[%clk
1:18:12]} 18. Rb1 {[%clk 1:20:28]} 18... b5 {[%clk 1:13:47]} 19. Rb4 {[%clk
1:17:50]} 19... Bd7 {[%clk 1:05:44]} 20. Kh2 {[%clk 1:04:54]} 20... Qe6 {[%clk
1:03:17]} 21. Qf3 {[%clk 1:00:54]} 21... Ne8 {[%clk 0:57:58]} 22. Qe3 {[%clk
0:54:08]} 22... Qxe3 {[%clk 0:54:35]} 23. fxe3 {[%clk 0:54:32]} 23... g5 {[%clk
0:54:36]} 24. Bg3 {[%clk 0:54:50]} 24... c5 {[%clk 0:54:41]} 25. Rb1 {[%clk
0:54:57]} 25... c4 {[%clk 0:55:04]} 26. Be2 {[%clk 0:55:22]} 26... Nf6 {[%clk
0:55:21]} 27. Bf3 {[%clk 0:54:48]} 27... Re8 {[%clk 0:54:35]} 28. Bf2 {[%clk
0:54:00]} 28... Ra8 {[%clk 0:51:55]} 29. Rb2 {[%clk 0:53:12]} 29... Ra3 {[%clk
0:50:29]} 30. Bg3 {[%clk 0:53:02]} 30... Bc6 {[%clk 0:49:38]} 31. Be5 {[%clk
0:53:16]} 31... Nd7 {[%clk 0:49:25]} 32. Bd4 {[%clk 0:53:36]} 32... f5 {[%clk
0:46:54]} 33. g4 {[%clk 0:53:37]} 33... fxg4 {[%clk 0:45:26]} 34. Bxg4 {[%clk
0:53:58]} 34... Kf7 {[%clk 0:45:12]} 35. Bh5+ {[%clk 0:53:30]} 35... Ke6 {[%clk
0:35:15]} 36. Kg3 {[%clk 0:53:22]} 36... Nf6 {[%clk 0:33:15]} 37. Bg4+ {[%clk
0:52:46]} 37... Kf7 {[%clk 0:32:21]} 38. Bf3 {[%clk 0:52:48]} 38... Kg6 {[%clk
0:31:57]} 1/2-1/2

[Variant "Standard"]
[Site "Europe Echecs"]

[Event "Championnat du monde jeunes U10"]
[Date "2024.11.15"]
[White "Kostyukovich, Ivan"]
[Black "Zilincan, Tomas"]
[WhiteElo "1489"]
[BlackElo "1778"]
[Round "1.10"]
[Result "1-0"]
[TimeControl "5400+30"]

1. d4 {[%clk 1:30:56]} 1... e6 {[%clk 1:30:55]} 2. Bf4 {[%clk 1:31:19]} 2... d5
{[%clk 1:31:21]} 3. e3 {[%clk 1:31:31]} 3... c5 {[%clk 1:31:45]} 4. c3 {[%clk
1:31:31]} 4... Nf6 {[%clk 1:32:07]} 5. Nf3 {[%clk 1:31:41]} 5... Nc6 {[%clk
1:32:30]} 6. Bd3 {[%clk 1:31:35]} 6... Nh5 {[%clk 1:31:15]} 7. Bg3 {[%clk
1:31:27]} 7... Nxg3 {[%clk 1:30:53]} 8. hxg3 {[%clk 1:31:43]} 8... Bd7 {[%clk
1:30:38]} 9. Nbd2 {[%clk 1:31:01]} 9... Bd6 {[%clk 1:28:38]} 10. e4 {[%clk
1:27:04]} 10... Qb6 {[%clk 1:27:27]} 11. Qb3 {[%clk 1:19:46]} 11... c4 {[%clk
1:26:23]} 12. Qxb6 {[%clk 1:19:47]} 12... axb6 {[%clk 1:26:48]} 13. Bc2 {[%clk
1:19:00]} 13... b5 {[%clk 1:27:03]} 14. b4 {[%clk 1:15:40]} 14... Kd8 {[%clk
1:24:38]} 15. Ng5 {[%clk 1:12:37]} 15... Be8 {[%clk 1:23:10]} 16. exd5 {[%clk
1:04:29]} 16... exd5 {[%clk 1:23:31]} 17. a3 {[%clk 1:02:45]} 17... Ke7 {[%clk
1:22:49]} 18. f4 {[%clk 0:56:52]} 18... f6 {[%clk 1:22:29]} 19. Ngf3 {[%clk
0:56:36]} 19... Bf7 {[%clk 1:22:01]} 20. Kf2 {[%clk 0:54:54]} 20... h6 {[%clk
1:22:20]} 21. Rhe1+ {[%clk 0:52:55]} 21... Kd7 {[%clk 1:22:26]} 22. Bf5+ {[%clk
0:52:35]} 22... Kc7 {[%clk 1:22:40]} 23. Nf1 {[%clk 0:47:41]} 23... Ra7 {[%clk
1:22:35]} 24. Ra2 {[%clk 0:42:08]} 24... g6 {[%clk 1:21:47]} 25. Be6 {[%clk
0:41:08]} 25... Be8 {[%clk 1:22:09]} 26. Bxd5 {[%clk 0:40:59]} 26... Bd7 {[%clk
1:22:30]} 27. Be6 {[%clk 0:40:32]} 27... Bxb4 {[%clk 1:21:51]} 28. Bxd7 {[%clk
0:38:11]} 28... Kxd7 {[%clk 1:22:12]} 29. d5 {[%clk 0:37:59]} 29... Bxc3 {[%clk
1:21:18]} 30. dxc6+ {[%clk 0:37:46]} 30... bxc6 {[%clk 1:21:35]} 31. Re3 {[%clk
0:37:23]} 31... Ba5 {[%clk 1:21:29]} 32. Ke2 {[%clk 0:36:29]} 32... Bb6 {[%clk
1:21:30]} 33. Rd2+ {[%clk 0:35:39]} 33... Kc7 {[%clk 1:21:33]} 34. Re7+ {[%clk
0:35:30]} 34... Kb8 {[%clk 1:21:38]} 35. Rxa7 {[%clk 0:35:29]} 35... Kxa7 {[%clk
1:21:43]} 36. Rd6 {[%clk 0:34:33]} 36... Re8+ {[%clk 1:21:45]} 37. Kd1 {[%clk
0:33:59]} 37... Bc5 {[%clk 1:21:38]} 38. Rxc6 {[%clk 0:33:54]} 38... Bxa3 {[%clk
1:22:01]} 39. Kc2 {[%clk 0:29:48]} 39... Re2+ {[%clk 1:21:48]} 40. Kc3 {[%clk
0:29:49]} 40... Bb2+ {[%clk 1:21:28]} 41. Kb4 {[%clk 0:29:31]} 41... c3 {[%clk
1:21:38]} 42. Kb3 {[%clk 0:28:26]} 42... Rxg2 {[%clk 1:21:06]} 43. Nd4 {[%clk
0:27:17]} 43... Kb7 {[%clk 1:20:21]} 44. Rc5 {[%clk 0:25:03]} 44... Rg1 {[%clk
1:20:20]} 45. Rxb5+ {[%clk 0:24:02]} 45... Ka6 {[%clk 1:20:33]} 46. Ne3 {[%clk
0:22:42]} 46... Rxg3 {[%clk 1:20:44]} 47. Nc4 {[%clk 0:22:09]} 47... c2+ {[%clk
1:18:49]} 48. Kxb2 {[%clk 0:21:59]} 48... c1=Q+ {[%clk 1:19:05]} 49. Kxc1 {[%clk
0:22:08]} 49... Rc3+ {[%clk 1:19:26]} 50. Kd2 {[%clk 0:22:07]} 50... Rxc4 {[%clk
1:19:49]} 51. Rd5 {[%clk 0:22:13]} 51... f5 {[%clk 1:18:31]} 52. Kd3 {[%clk
0:22:07]} 52... Rc7 {[%clk 1:17:47]} 53. Rd6+ {[%clk 0:21:57]} 53... Kb7 {[%clk
1:18:08]} 54. Rxg6 {[%clk 0:21:54]} 54... Kc8 {[%clk 1:17:55]} 55. Rxh6 {[%clk
0:21:43]} 55... Rf7 {[%clk 1:18:13]} 56. Rh5 {[%clk 0:21:21]} 56... Kd7 {[%clk
1:18:30]} 57. Rxf5 {[%clk 0:21:20]} 57... Rh7 {[%clk 1:18:33]} 58. Ke4 {[%clk
0:21:28]} 58... Rh1 {[%clk 1:17:47]} 59. Rd5+ {[%clk 0:20:48]} 59... Ke7 {[%clk
1:18:08]} 60. Nf5+ {[%clk 0:20:37]} 60... Kf6 {[%clk 1:18:23]} 61. Ne3 {[%clk
0:20:20]} 61... Rg1 {[%clk 1:18:22]} 62. f5 {[%clk 0:19:30]} 62... Ra1 {[%clk
1:18:17]} 63. Rd6+ {[%clk 0:19:30]} 63... Ke7 {[%clk 1:18:28]} 64. Re6+ {[%clk
0:19:14]} 64... Kf7 {[%clk 1:18:45]} 65. Ke5 {[%clk 0:18:57]} 65... Re1 {[%clk
1:18:53]} 66. Kd6 {[%clk 0:18:50]} 66... Ra1 {[%clk 1:18:44]} 67. Nd5 {[%clk
0:18:26]} 67... Rd1 {[%clk 1:17:29]} 68. Re7+ {[%clk 0:18:07]} 68... Kf8 {[%clk
1:17:48]} 69. f6 {[%clk 0:18:15]} 69... Rd2 {[%clk 1:17:49]} 70. Ke5 {[%clk
0:17:27]} 70... Re2+ {[%clk 1:18:09]} 71. Kf5 {[%clk 0:17:22]} 71... Rf2+ {[%clk
1:17:30]} 72. Nf4 {[%clk 0:17:28]} 72... Rf1 {[%clk 1:17:46]} 73. Ra7 {[%clk
0:16:49]} 1-0

[Variant "Standard"]
[Site "Europe Echecs"]

[Event "Championnat du monde jeunes U10"]
[Date "2024.11.15"]
[White "Zhou, Martin"]
[Black "Radiukevich, Viacheslau"]
[WhiteElo "1776"]
[BlackElo "1484"]
[Round "1.11"]
[Result "1/2-1/2"]
[TimeControl "5400+30"]

1. e4 {[%clk 1:30:58]} 1... e5 {[%clk 1:30:50]} 2. Nf3 {[%clk 1:31:25]} 2... Nc6
{[%clk 1:31:03]} 3. Bb5 {[%clk 1:31:51]} 3... a6 {[%clk 1:31:12]} 4. Ba4 {[%clk
1:32:18]} 4... Nf6 {[%clk 1:31:35]} 5. O-O {[%clk 1:32:41]} 5... b5 {[%clk
1:31:53]} 6. Bb3 {[%clk 1:33:06]} 6... Be7 {[%clk 1:32:09]} 7. Re1 {[%clk
1:33:29]} 7... O-O {[%clk 1:32:27]} 8. a4 {[%clk 1:33:35]} 8... b4 {[%clk
1:30:52]} 9. d4 {[%clk 1:33:01]} 9... Nxd4 {[%clk 1:27:01]} 10. Nxd4 {[%clk
1:32:51]} 10... exd4 {[%clk 1:26:55]} 11. e5 {[%clk 1:33:10]} 11... Ne8 {[%clk
1:25:56]} 12. Qxd4 {[%clk 1:31:48]} 12... c5 {[%clk 1:24:59]} 13. Qe4 {[%clk
1:29:29]} 13... Rb8 {[%clk 1:23:16]} 14. Bf4 {[%clk 1:29:47]} 14... Bb7 {[%clk
1:22:24]} 15. Qe3 {[%clk 1:29:17]} 15... Nc7 {[%clk 1:20:53]} 16. Nd2 {[%clk
1:24:33]} 16... Ne6 {[%clk 1:19:22]} 17. Bg3 {[%clk 1:24:46]} 17... a5 {[%clk
1:14:54]} 18. Nc4 {[%clk 1:19:50]} 18... Qc7 {[%clk 1:10:45]} 19. Rad1 {[%clk
1:13:01]} 19... Qc6 {[%clk 1:09:20]} 20. f3 {[%clk 1:13:13]} 20... Bg5 {[%clk
1:06:59]} 21. Qf2 {[%clk 1:11:28]} 21... Bd8 {[%clk 0:51:10]} 22. Nd6 {[%clk
1:03:41]} 22... Bb6 {[%clk 0:51:04]} 23. Bd5 {[%clk 0:52:07]} 23... c4 {[%clk
0:49:33]} 24. Bxc6 {[%clk 0:52:15]} 24... Bxf2+ {[%clk 0:49:21]} 25. Bxf2 {[%clk
0:52:21]} 25... Bxc6 {[%clk 0:49:21]} 26. Nxc4 {[%clk 0:51:25]} 26... Bxa4
{[%clk 0:48:57]} 27. b3 {[%clk 0:51:03]} 27... Bb5 {[%clk 0:46:59]} 28. Nxa5
{[%clk 0:45:45]} 28... Rfc8 {[%clk 0:43:33]} 29. Rd2 {[%clk 0:43:47]} 29... Nc5
{[%clk 0:41:24]} 30. Rd5 {[%clk 0:41:35]} 30... Ne6 {[%clk 0:40:47]} 31. Rc1
{[%clk 0:34:52]} 31... Nf4 {[%clk 0:41:00]} 32. Rcd1 {[%clk 0:25:44]} 32... Nxd5
{[%clk 0:41:02]} 33. Rxd5 {[%clk 0:26:03]} 33... Bc6 {[%clk 0:38:53]} 34. Nxc6
{[%clk 0:23:53]} 34... dxc6 {[%clk 0:38:37]} 35. Rd6 {[%clk 0:19:43]} 35... c5
{[%clk 0:35:40]} 36. Bg3 {[%clk 0:17:57]} 36... Ra8 {[%clk 0:34:19]} 37. Kf2
{[%clk 0:13:04]} 37... Ra2 {[%clk 0:33:40]} 38. Rd2 {[%clk 0:12:29]} 38... c4
{[%clk 0:33:59]} 39. Ke3 {[%clk 0:11:57]} 39... c3 {[%clk 0:31:52]} 40. Re2
{[%clk 0:11:34]} 40... Rd8 {[%clk 0:32:04]} 41. f4 {[%clk 0:10:26]} 41... Ra1
{[%clk 0:31:28]} 42. Bh4 {[%clk 0:09:45]} 42... Rd7 {[%clk 0:30:28]} 43. g4
{[%clk 0:08:04]} 43... Rad1 {[%clk 0:30:06]} 44. Be1 {[%clk 0:06:56]} 44... Kf8
{[%clk 0:29:35]} 45. h4 {[%clk 0:06:55]} 45... Ke7 {[%clk 0:29:19]} 46. Kf3
{[%clk 0:05:29]} 46... Ra7 {[%clk 0:28:34]} 47. Bf2 {[%clk 0:05:18]} 47... Rc7
{[%clk 0:26:18]} 48. Be3 {[%clk 0:04:37]} 48... g6 {[%clk 0:21:18]} 49. Ke4
{[%clk 0:03:35]} 49... Rcd7 {[%clk 0:20:10]} 50. Bc5+ {[%clk 0:02:04]} 50... Ke8
{[%clk 0:20:22]} 51. Bd6 {[%clk 0:01:51]} 1/2-1/2

[Variant "Standard"]
[Site "Europe Echecs"]